[Event "Titled Tuesday Blitz April 18 Early 2023"]
[White "Bruedigam, Martin"]
[Black "Ronka, Erik"]
[WhiteFideId "24608033"]
[BlackFideId "505080"]
[WhiteElo "2331"]
[BlackElo "2264"]
[Result "0-1"]
[Round "03"]
[TimeControl "180+2"]
[Date "2023.04.18"]
[WhiteClock "0:00:31"]
[BlackClock "0:00:05"]

1. d4 {[%clk 0:03:00]}  d5 {[%clk 0:02:58]} 2. c4 {[%clk 0:03:01]}  c6 {[%clk 0:02:58]} 3. Nc3 {[%clk 0:02:59]}  Nf6 {[%clk 0:02:58]} 4. Nf3 {[%clk 0:02:57]}  e6 {[%clk 0:02:58]} 5. cxd5 {[%clk 0:02:50]}  exd5 {[%clk 0:02:57]} 6. Bg5 {[%clk 0:02:49]}  Be7 {[%clk 0:02:56]} 7. Qc2 {[%clk 0:02:48]}  g6 {[%clk 0:02:56]} 8. e3 {[%clk 0:02:48]}  Bf5 {[%clk 0:02:54]} 9. Qb3 {[%clk 0:02:46]}  Qb6 {[%clk 0:02:50]} 10. Be2 {[%clk 0:02:37]}  O-O {[%clk 0:02:43]} 11. O-O {[%clk 0:02:37]}  Nbd7 {[%clk 0:02:44]} 12. h3 {[%clk 0:02:31]}  Rfe8 {[%clk 0:02:43]} 13. Rfc1 {[%clk 0:02:30]}  Ne4 {[%clk 0:01:46]} 14. Bxe7 {[%clk 0:02:26]}  Rxe7 {[%clk 0:01:47]} 15. Nxe4 {[%clk 0:02:26]}  Bxe4 {[%clk 0:01:48]} 16. Nd2 {[%clk 0:02:25]}  Bf5 {[%clk 0:01:47]} 17. Qc3 {[%clk 0:02:25]}  a5 {[%clk 0:01:42]} 18. b3 {[%clk 0:02:16]}  Ree8 {[%clk 0:01:39]} 19. a3 {[%clk 0:02:16]}  Nf6 {[%clk 0:01:14]} 20. Bf3 {[%clk 0:02:14]}  Ne4 {[%clk 0:01:07]} 21. Bxe4 {[%clk 0:02:13]}  Bxe4 {[%clk 0:01:08]} 22. b4 {[%clk 0:02:13]}  axb4 {[%clk 0:01:07]} 23. axb4 {[%clk 0:02:12]}  Bf5 {[%clk 0:01:07]} 24. Nf3 {[%clk 0:02:07]}  Qb5 {[%clk 0:00:51]} 25. Ra3 {[%clk 0:01:55]}  Qe2 {[%clk 0:00:34]} 26. Rca1 {[%clk 0:01:53]}  Rxa3 {[%clk 0:00:33]} 27. Qxa3 {[%clk 0:01:51]}  Be4 {[%clk 0:00:16]} 28. Ng5 {[%clk 0:01:32]}  Bf5 {[%clk 0:00:12]} 29. Qc3 {[%clk 0:01:22]}  h6 {[%clk 0:00:10]} 30. Nf3 {[%clk 0:01:22]}  Be4 {[%clk 0:00:10]} 31. Nd2 {[%clk 0:01:19]}  Bf5 {[%clk 0:00:11]} 32. Nb3 {[%clk 0:01:15]}  Qh5 {[%clk 0:00:08]} 33. Nc5 {[%clk 0:01:14]}  Bxh3 {[%clk 0:00:08]} 34. gxh3 {[%clk 0:01:14]}  Qxh3 {[%clk 0:00:09]} 35. Nd3 {[%clk 0:00:41]}  Re4 {[%clk 0:00:08]} 36. Nf4 {[%clk 0:00:41]}  Rxf4 {[%clk 0:00:07]} 37. Ra8+ {[%clk 0:00:34]}  Kh7 {[%clk 0:00:07]} 38. f3 {[%clk 0:00:31]}  Qxf3 {[%clk 0:00:05]} 0-1


[Site "https://www.chess.com"]

[Event "Titled Tuesday Blitz April 18 Early 2023"]
[White "Gheorghiu, Calin"]
[Black "Taboas Rodriguez, Daniel"]
[WhiteFideId "1200305"]
[BlackFideId "2208466"]
[WhiteElo "2223"]
[BlackElo "2365"]
[Result "0-1"]
[Round "03"]
[TimeControl "180+2"]
[Date "2023.04.18"]
[WhiteClock "0:00:01"]
[BlackClock "0:01:00"]

1. d4 {[%clk 0:03:00]}  Nf6 {[%clk 0:02:59]} 2. Nf3 {[%clk 0:02:59]}  g6 {[%clk 0:03:00]} 3. Nc3 {[%clk 0:02:57]}  d5 {[%clk 0:02:57]} 4. Bf4 {[%clk 0:02:57]}  Bg7 {[%clk 0:02:56]} 5. Nb5 {[%clk 0:02:55]}  Na6 {[%clk 0:02:56]} 6. e3 {[%clk 0:02:53]}  c6 {[%clk 0:02:56]} 7. Nc3 {[%clk 0:02:52]}  Nc7 {[%clk 0:02:55]} 8. h3 {[%clk 0:02:52]}  Bf5 {[%clk 0:02:51]} 9. a4 {[%clk 0:02:51]}  Ne4 {[%clk 0:02:48]} 10. Nxe4 {[%clk 0:02:47]}  Bxe4 {[%clk 0:02:49]} 11. Nd2 {[%clk 0:02:40]}  Bf5 {[%clk 0:02:49]} 12. Be2 {[%clk 0:02:37]}  O-O {[%clk 0:02:49]} 13. O-O {[%clk 0:02:35]}  Re8 {[%clk 0:02:49]} 14. Nf3 {[%clk 0:02:26]}  Be4 {[%clk 0:02:45]} 15. a5 {[%clk 0:02:20]}  Bxf3 {[%clk 0:02:40]} 16. Bxf3 {[%clk 0:02:20]}  e5 {[%clk 0:02:41]} 17. dxe5 {[%clk 0:02:18]}  Bxe5 {[%clk 0:02:41]} 18. Bxe5 {[%clk 0:02:14]}  Rxe5 {[%clk 0:02:42]} 19. Qd4 {[%clk 0:02:06]}  Qe7 {[%clk 0:02:42]} 20. c4 {[%clk 0:02:05]}  dxc4 {[%clk 0:02:30]} 21. Qxc4 {[%clk 0:02:04]}  Qc5 {[%clk 0:02:28]} 22. Qxc5 {[%clk 0:01:58]}  Rxc5 {[%clk 0:02:29]} 23. Rfd1 {[%clk 0:01:58]}  Rb5 {[%clk 0:02:25]} 24. Rd7 {[%clk 0:01:55]}  Na6 {[%clk 0:02:21]} 25. Rd2 {[%clk 0:01:00]}  Nc5 {[%clk 0:02:08]} 26. a6 {[%clk 0:00:37]}  Nxa6 {[%clk 0:01:44]} 27. Bxc6 {[%clk 0:00:31]}  bxc6 {[%clk 0:01:39]} 28. Rxa6 {[%clk 0:00:30]}  Rb6 {[%clk 0:01:38]} 29. Ra5 {[%clk 0:00:18]}  Rb5 {[%clk 0:01:31]} 30. Ra6 {[%clk 0:00:17]}  Rb6 {[%clk 0:01:32]} 31. Ra5 {[%clk 0:00:17]}  a6 {[%clk 0:01:32]} 32. Rc2 {[%clk 0:00:17]}  Rab8 {[%clk 0:01:32]} 33. g3 {[%clk 0:00:13]}  f5 {[%clk 0:01:32]} 34. h4 {[%clk 0:00:13]}  Kf7 {[%clk 0:01:33]} 35. Kg2 {[%clk 0:00:14]}  Ke6 {[%clk 0:01:33]} 36. Rc3 {[%clk 0:00:09]}  Kd6 {[%clk 0:01:33]} 37. Rca3 {[%clk 0:00:09]}  Ra8 {[%clk 0:01:29]} 38. h5 {[%clk 0:00:08]}  Rxb2 {[%clk 0:01:22]} 39. Rxa6 {[%clk 0:00:05]}  Rxa6 {[%clk 0:01:22]} 40. Rxa6 {[%clk 0:00:05]}  Rb7 {[%clk 0:01:16]} 41. Ra8 {[%clk 0:00:02]}  c5 {[%clk 0:01:12]} 42. hxg6 {[%clk 0:00:02]}  hxg6 {[%clk 0:01:13]} 43. Ra6+ {[%clk 0:00:01]}  Kd5 {[%clk 0:01:12]} 44. Rxg6 {[%clk 0:00:02]}  c4 {[%clk 0:01:13]} 45. Ra6 {[%clk 0:00:02]}  c3 {[%clk 0:01:12]} 46. Ra1 {[%clk 0:00:03]}  Kc4 {[%clk 0:01:11]} 47. Kf3 {[%clk 0:00:03]}  Kd3 {[%clk 0:01:11]} 48. Kf4 {[%clk 0:00:04]}  c2 {[%clk 0:01:08]} 49. Kxf5 {[%clk 0:00:03]}  Rb1 {[%clk 0:01:08]} 50. Ra3+ {[%clk 0:00:03]}  Kc4 {[%clk 0:01:04]} 51. Ra8 {[%clk 0:00:03]}  Rb5+ {[%clk 0:01:00]} 52. Ke4 {[%clk 0:00:02]}  c1=Q {[%clk 0:01:00]} 53. Rc8+ {[%clk 0:00:01]}  Rc5 {[%clk 0:01:00]} 0-1


[Site "https://www.chess.com"]

[Event "Titled Tuesday Blitz April 18 Early 2023"]
[White "Tomaszewski, Kacper"]
[Black "Barwinska, Ewa"]
[WhiteFideId "1127373"]
[BlackFideId "21833761"]
[WhiteElo "2211"]
[BlackElo "1908"]
[Result "1-0"]
[Round "03"]
[TimeControl "180+2"]
[Date "2023.04.18"]
[WhiteClock "0:00:25"]
[BlackClock "0:00:08"]

1. c4 {[%clk 0:03:00]}  c5 {[%clk 0:02:56]} 2. Nf3 {[%clk 0:02:57]}  Nc6 {[%clk 0:02:52]} 3. g3 {[%clk 0:02:57]}  g6 {[%clk 0:02:51]} 4. Bg2 {[%clk 0:02:58]}  Bg7 {[%clk 0:02:52]} 5. O-O {[%clk 0:02:58]}  Nh6 {[%clk 0:02:52]} 6. Nc3 {[%clk 0:02:55]}  Nf5 {[%clk 0:02:52]} 7. a3 {[%clk 0:02:54]}  O-O {[%clk 0:02:50]} 8. Rb1 {[%clk 0:02:50]}  a5 {[%clk 0:02:50]} 9. e3 {[%clk 0:02:41]}  e6 {[%clk 0:02:46]} 10. d3 {[%clk 0:02:35]}  d5 {[%clk 0:02:43]} 11. cxd5 {[%clk 0:02:35]}  exd5 {[%clk 0:02:44]} 12. Na4 {[%clk 0:02:28]}  b6 {[%clk 0:02:27]} 13. Qb3 {[%clk 0:02:27]}  Rb8 {[%clk 0:02:27]} 14. Bd2 {[%clk 0:02:06]}  Be6 {[%clk 0:02:23]} 15. Qc2 {[%clk 0:01:55]}  d4 {[%clk 0:01:32]} 16. e4 {[%clk 0:01:51]}  Nd6 {[%clk 0:01:21]} 17. Ng5 {[%clk 0:01:44]}  Bd7 {[%clk 0:01:17]} 18. b4 {[%clk 0:01:32]}  axb4 {[%clk 0:01:13]} 19. axb4 {[%clk 0:01:32]}  Nxb4 {[%clk 0:01:10]} 20. Rxb4 {[%clk 0:01:10]}  cxb4 {[%clk 0:01:05]} 21. f4 {[%clk 0:01:11]}  Rc8 {[%clk 0:00:40]} 22. Qb3 {[%clk 0:01:10]}  h6 {[%clk 0:00:26]} 23. Nf3 {[%clk 0:01:07]}  Be6 {[%clk 0:00:24]} 24. Qxb4 {[%clk 0:01:08]}  b5 {[%clk 0:00:21]} 25. Nc5 {[%clk 0:01:06]}  Qb6 {[%clk 0:00:17]} 26. Nxe6 {[%clk 0:01:03]}  fxe6 {[%clk 0:00:18]} 27. Bh3 {[%clk 0:01:02]}  Rfe8 {[%clk 0:00:15]} 28. Nh4 {[%clk 0:01:00]}  Kh7 {[%clk 0:00:14]} 29. Qb3 {[%clk 0:00:47]}  Nb7 {[%clk 0:00:09]} 30. f5 {[%clk 0:00:38]}  exf5 {[%clk 0:00:08]} 31. exf5 {[%clk 0:00:37]}  g5 {[%clk 0:00:09]} 32. f6 {[%clk 0:00:29]}  Bxf6 {[%clk 0:00:08]} 33. Qf7+ {[%clk 0:00:25]}  Bg7 {[%clk 0:00:08]} 34. Bf5+ {[%clk 0:00:25]}  Kh8 {[%clk 0:00:07]} 35. Ng6+ {[%clk 0:00:25]}  Qxg6 {[%clk 0:00:07]} 36. Qxg6 {[%clk 0:00:25]}  Rf8 {[%clk 0:00:08]} 37. Qh7# {[%clk 0:00:25]} 1-0


[Site "https://www.chess.com"]

[Event "Titled Tuesday Blitz April 18 Early 2023"]
[White "Nugumanov, Bakhtiyar"]
[Black "Milchev, Nikolay"]
[WhiteFideId "13701797"]
[BlackFideId "2906090"]
[WhiteElo "2209"]
[BlackElo "2449"]
[Result "0-1"]
[Round "03"]
[TimeControl "180+2"]
[Date "2023.04.18"]
[WhiteClock "0:00:01"]
[BlackClock "0:00:43"]

1. Nf3 {[%clk 0:03:00]}  Nf6 {[%clk 0:03:00]} 2. c4 {[%clk 0:03:00]}  c6 {[%clk 0:03:00]} 3. g3 {[%clk 0:03:00]}  d5 {[%clk 0:03:01]} 4. Bg2 {[%clk 0:03:00]}  dxc4 {[%clk 0:03:01]} 5. O-O {[%clk 0:03:01]}  g6 {[%clk 0:03:01]} 6. Na3 {[%clk 0:02:36]}  b5 {[%clk 0:02:42]} 7. Ne5 {[%clk 0:02:37]}  Qb6 {[%clk 0:02:39]} 8. d3 {[%clk 0:02:17]}  cxd3 {[%clk 0:02:35]} 9. Be3 {[%clk 0:02:09]}  Qb7 {[%clk 0:02:34]} 10. Qxd3 {[%clk 0:01:55]}  Be6 {[%clk 0:02:27]} 11. Nxb5 {[%clk 0:01:48]}  Bg7 {[%clk 0:02:22]} 12. Rfc1 {[%clk 0:01:41]}  Nd5 {[%clk 0:02:15]} 13. Nxc6 {[%clk 0:01:18]}  Nxc6 {[%clk 0:01:48]} 14. Bxd5 {[%clk 0:01:18]}  Bxd5 {[%clk 0:01:49]} 15. Qxd5 {[%clk 0:01:17]}  Rc8 {[%clk 0:01:50]} 16. Nd4 {[%clk 0:01:09]}  Bxd4 {[%clk 0:01:49]} 17. Bxd4 {[%clk 0:01:10]}  O-O {[%clk 0:01:49]} 18. Bc3 {[%clk 0:01:05]}  Rfd8 {[%clk 0:01:47]} 19. Qf3 {[%clk 0:01:06]}  Rd6 {[%clk 0:01:32]} 20. Be5 {[%clk 0:00:42]}  Re6 {[%clk 0:01:25]} 21. Bc3 {[%clk 0:00:39]}  Qd7 {[%clk 0:01:23]} 22. Rd1 {[%clk 0:00:39]}  Rd6 {[%clk 0:01:23]} 23. Rxd6 {[%clk 0:00:29]}  Qxd6 {[%clk 0:01:24]} 24. e3 {[%clk 0:00:20]}  Rd8 {[%clk 0:01:06]} 25. Kg2 {[%clk 0:00:20]}  e5 {[%clk 0:01:03]} 26. Rc1 {[%clk 0:00:21]}  h5 {[%clk 0:00:56]} 27. b3 {[%clk 0:00:14]}  a5 {[%clk 0:00:55]} 28. Bb2 {[%clk 0:00:13]}  Nb4 {[%clk 0:00:54]} 29. Ba3 {[%clk 0:00:09]}  Qd2 {[%clk 0:00:54]} 30. Rc7 {[%clk 0:00:08]}  Rf8 {[%clk 0:00:53]} 31. Bxb4 {[%clk 0:00:08]}  axb4 {[%clk 0:00:52]} 32. Qe4 {[%clk 0:00:06]}  Qxa2 {[%clk 0:00:51]} 33. Qxb4 {[%clk 0:00:06]}  Qa8+ {[%clk 0:00:49]} 34. Kh3 {[%clk 0:00:03]}  Qf3 {[%clk 0:00:48]} 35. Qc4 {[%clk 0:00:03]}  Qxf2 {[%clk 0:00:45]} 36. Qc2 {[%clk 0:00:01]}  Qf1+ {[%clk 0:00:43]} 0-1


[Site "https://www.chess.com"]

[Event "Titled Tuesday Blitz April 18 Early 2023"]
[White "Ljukin, Sergei"]
[Black "mrithyunjay"]
[WhiteFideId "14102200"]
[WhiteElo "2312"]
[BlackElo "2216"]
[Result "1-0"]
[Round "03"]
[TimeControl "180+2"]
[Date "2023.04.18"]
[WhiteClock "0:01:44"]
[BlackClock "0:01:22"]

1. e4 {[%clk 0:03:00]}  e5 {[%clk 0:02:56]} 2. Nf3 {[%clk 0:03:01]}  Nc6 {[%clk 0:02:56]} 3. Bb5 {[%clk 0:03:01]}  Nf6 {[%clk 0:02:55]} 4. Qe2 {[%clk 0:03:01]}  Bc5 {[%clk 0:02:53]} 5. c3 {[%clk 0:02:58]}  O-O {[%clk 0:02:51]} 6. d3 {[%clk 0:02:58]}  Re8 {[%clk 0:02:39]} 7. Bg5 {[%clk 0:02:57]}  h6 {[%clk 0:02:39]} 8. Bh4 {[%clk 0:02:57]}  a6 {[%clk 0:02:36]} 9. Ba4 {[%clk 0:02:56]}  d5 {[%clk 0:02:36]} 10. Nbd2 {[%clk 0:02:50]}  d4 {[%clk 0:02:32]} 11. Nb3 {[%clk 0:02:29]}  Ba7 {[%clk 0:02:30]} 12. Bxc6 {[%clk 0:02:28]}  bxc6 {[%clk 0:02:30]} 13. cxd4 {[%clk 0:02:28]}  exd4 {[%clk 0:02:30]} 14. O-O {[%clk 0:02:27]}  g5 {[%clk 0:02:17]} 15. Bg3 {[%clk 0:02:27]}  Be6 {[%clk 0:02:15]} 16. Qc2 {[%clk 0:02:23]}  Rb8 {[%clk 0:02:09]} 17. Na5 {[%clk 0:02:10]}  Bd7 {[%clk 0:02:04]} 18. b3 {[%clk 0:02:04]}  c5 {[%clk 0:02:01]} 19. Nc4 {[%clk 0:02:00]}  Be6 {[%clk 0:01:41]} 20. Nfe5 {[%clk 0:01:58]}  Rb6 {[%clk 0:01:30]} 21. Nxb6 {[%clk 0:01:56]}  cxb6 {[%clk 0:01:31]} 22. f4 {[%clk 0:01:53]}  Bb8 {[%clk 0:01:26]} 23. Nc6 {[%clk 0:01:47]}  Qc8 {[%clk 0:01:23]} 24. Nxb8 {[%clk 0:01:47]}  g4 {[%clk 0:01:22]} 25. f5 {[%clk 0:01:44]} 1-0


[Site "https://www.chess.com"]

[Event "Titled Tuesday Blitz April 18 Early 2023"]
[White "Omelja, Artem"]
[Black "Faci, Fadil"]
[WhiteFideId "14119846"]
[BlackFideId "4645162"]
[WhiteElo "2404"]
[BlackElo "2151"]
[Result "1-0"]
[Round "03"]
[TimeControl "180+2"]
[Date "2023.04.18"]
[WhiteClock "0:01:49"]
[BlackClock "0:01:53"]

1. d4 {[%clk 0:03:00]}  Nf6 {[%clk 0:02:58]} 2. c4 {[%clk 0:03:00]}  g6 {[%clk 0:02:58]} 3. Nc3 {[%clk 0:02:59]}  d5 {[%clk 0:02:58]} 4. Bg5 {[%clk 0:02:58]}  c6 {[%clk 0:02:51]} 5. Bxf6 {[%clk 0:02:53]}  exf6 {[%clk 0:02:51]} 6. cxd5 {[%clk 0:02:53]}  cxd5 {[%clk 0:02:51]} 7. e3 {[%clk 0:02:52]}  Nc6 {[%clk 0:02:50]} 8. Be2 {[%clk 0:02:51]}  Bg7 {[%clk 0:02:50]} 9. Bf3 {[%clk 0:02:50]}  Be6 {[%clk 0:02:50]} 10. Nge2 {[%clk 0:02:50]}  Ne7 {[%clk 0:02:48]} 11. Qb3 {[%clk 0:02:46]}  O-O {[%clk 0:02:44]} 12. O-O {[%clk 0:02:46]}  g5 {[%clk 0:02:40]} 13. g3 {[%clk 0:02:42]}  Re8 {[%clk 0:02:31]} 14. Rfc1 {[%clk 0:02:39]}  Qb6 {[%clk 0:02:30]} 15. Qxb6 {[%clk 0:02:35]}  axb6 {[%clk 0:02:31]} 16. Nb5 {[%clk 0:02:36]}  Ra5 {[%clk 0:02:28]} 17. Nec3 {[%clk 0:02:17]}  Rd8 {[%clk 0:02:19]} 18. b4 {[%clk 0:01:56]}  Raa8 {[%clk 0:02:08]} 19. a3 {[%clk 0:01:54]}  Nc6 {[%clk 0:01:58]} 20. Nc7 {[%clk 0:01:50]}  Rac8 {[%clk 0:01:58]} 21. N7xd5 {[%clk 0:01:48]}  Bxd5 {[%clk 0:01:53]} 22. Nxd5 {[%clk 0:01:49]} 1-0


[Site "https://www.chess.com"]

[Event "Titled Tuesday Blitz April 18 Early 2023"]
[White "Hartikainen, Jarmo"]
[Black "Amilal Munkhdalai"]
[WhiteFideId "503134"]
[BlackFideId "4903250"]
[WhiteElo "2112"]
[BlackElo "2293"]
[Result "0-1"]
[Round "03"]
[TimeControl "180+2"]
[Date "2023.04.18"]
[WhiteClock "0:00:17"]
[BlackClock "0:02:23"]

1. e4 {[%clk 0:03:00]}  c5 {[%clk 0:03:00]} 2. c3 {[%clk 0:03:00]}  d5 {[%clk 0:02:57]} 3. exd5 {[%clk 0:03:00]}  Qxd5 {[%clk 0:02:58]} 4. d4 {[%clk 0:03:00]}  Nc6 {[%clk 0:02:59]} 5. Nf3 {[%clk 0:03:00]}  Bg4 {[%clk 0:02:59]} 6. Be2 {[%clk 0:02:58]}  e6 {[%clk 0:03:00]} 7. Na3 {[%clk 0:02:58]}  a6 {[%clk 0:02:58]} 8. h3 {[%clk 0:02:38]}  Bh5 {[%clk 0:02:57]} 9. Nc2 {[%clk 0:02:32]}  Nf6 {[%clk 0:02:56]} 10. Be3 {[%clk 0:02:29]}  cxd4 {[%clk 0:02:54]} 11. Ncxd4 {[%clk 0:02:25]}  Be7 {[%clk 0:02:51]} 12. O-O {[%clk 0:02:23]}  O-O {[%clk 0:02:51]} 13. Nxc6 {[%clk 0:02:11]}  Qxc6 {[%clk 0:02:51]} 14. Nd4 {[%clk 0:01:26]}  Qd5 {[%clk 0:02:50]} 15. Bxh5 {[%clk 0:01:01]}  Qxh5 {[%clk 0:02:49]} 16. Qxh5 {[%clk 0:01:00]}  Nxh5 {[%clk 0:02:49]} 17. a4 {[%clk 0:00:55]}  Nf6 {[%clk 0:02:47]} 18. Bg5 {[%clk 0:00:44]}  h6 {[%clk 0:02:46]} 19. Bxf6 {[%clk 0:00:44]}  Bxf6 {[%clk 0:02:47]} 20. Rfd1 {[%clk 0:00:42]}  Rac8 {[%clk 0:02:45]} 21. Rac1 {[%clk 0:00:39]}  Rc4 {[%clk 0:02:44]} 22. b3 {[%clk 0:00:33]}  Rc7 {[%clk 0:02:42]} 23. c4 {[%clk 0:00:28]}  Rfc8 {[%clk 0:02:42]} 24. g3 {[%clk 0:00:20]}  h5 {[%clk 0:02:27]} 25. Kg2 {[%clk 0:00:20]}  h4 {[%clk 0:02:27]} 26. Ne2 {[%clk 0:00:17]}  hxg3 {[%clk 0:02:26]} 27. fxg3 {[%clk 0:00:17]}  g6 {[%clk 0:02:26]} 28. Nf4 {[%clk 0:00:17]}  b5 {[%clk 0:02:24]} 29. cxb5 {[%clk 0:00:17]}  Rxc1 {[%clk 0:02:23]} 0-1


[Site "https://www.chess.com"]

[Event "Titled Tuesday Blitz April 18 Early 2023"]
[White "Smiechu"]
[Black "Shuvalov, Evgenij"]
[BlackFideId "4187237"]
[WhiteElo "2346"]
[BlackElo "2080"]
[Result "1-0"]
[Round "03"]
[TimeControl "180+2"]
[Date "2023.04.18"]
[WhiteClock "0:00:19"]
[BlackClock "0:00:20"]

1. e4 {[%clk 0:03:00]}  e6 {[%clk 0:02:55]} 2. d4 {[%clk 0:03:00]}  d5 {[%clk 0:02:55]} 3. Bd3 {[%clk 0:03:01]}  c5 {[%clk 0:02:54]} 4. exd5 {[%clk 0:02:55]}  exd5 {[%clk 0:02:54]} 5. c3 {[%clk 0:02:55]}  Nc6 {[%clk 0:02:49]} 6. Ne2 {[%clk 0:02:54]}  cxd4 {[%clk 0:02:47]} 7. cxd4 {[%clk 0:02:53]}  Nf6 {[%clk 0:02:46]} 8. O-O {[%clk 0:02:53]}  Be7 {[%clk 0:02:46]} 9. Nbc3 {[%clk 0:02:53]}  O-O {[%clk 0:02:46]} 10. Re1 {[%clk 0:02:51]}  Bg4 {[%clk 0:02:45]} 11. Be3 {[%clk 0:02:49]}  Re8 {[%clk 0:02:43]} 12. a3 {[%clk 0:02:47]}  Rc8 {[%clk 0:02:43]} 13. Rc1 {[%clk 0:02:46]}  Bh5 {[%clk 0:02:42]} 14. Bb1 {[%clk 0:02:44]}  Bg6 {[%clk 0:02:41]} 15. Bxg6 {[%clk 0:02:43]}  hxg6 {[%clk 0:02:42]} 16. Nf4 {[%clk 0:02:41]}  Na5 {[%clk 0:02:39]} 17. Nd3 {[%clk 0:02:30]}  Nc4 {[%clk 0:02:38]} 18. Qa4 {[%clk 0:02:21]}  a6 {[%clk 0:02:35]} 19. Qb3 {[%clk 0:02:13]}  b5 {[%clk 0:02:29]} 20. Ne5 {[%clk 0:02:05]}  Bd6 {[%clk 0:02:22]} 21. Nxc4 {[%clk 0:02:03]}  dxc4 {[%clk 0:02:18]} 22. Qc2 {[%clk 0:02:02]}  Bb8 {[%clk 0:02:11]} 23. Bg5 {[%clk 0:01:50]}  Qd6 {[%clk 0:01:57]} 24. g3 {[%clk 0:01:48]}  Qxd4 {[%clk 0:01:55]} 25. Rcd1 {[%clk 0:01:42]}  Qg4 {[%clk 0:01:50]} 26. Bxf6 {[%clk 0:01:40]}  gxf6 {[%clk 0:01:51]} 27. Nd5 {[%clk 0:01:33]}  Kg7 {[%clk 0:01:49]} 28. Nb6 {[%clk 0:01:05]}  Rcd8 {[%clk 0:01:43]} 29. Rxe8 {[%clk 0:00:41]}  Rxe8 {[%clk 0:01:13]} 30. Nd7 {[%clk 0:00:41]}  Ba7 {[%clk 0:01:10]} 31. Nxf6 {[%clk 0:00:23]}  Kxf6 {[%clk 0:00:48]} 32. Qc3+ {[%clk 0:00:23]}  Re5 {[%clk 0:00:19]} 33. Rd5 {[%clk 0:00:20]}  Kf5 {[%clk 0:00:20]} 34. Qxe5# {[%clk 0:00:19]} 1-0


[Site "https://www.chess.com"]

[Event "Titled Tuesday Blitz April 18 Early 2023"]
[White "Havanecz, Bianka"]
[Black "Martin Duque, Jesus"]
[WhiteFideId "704814"]
[BlackFideId "2208954"]
[WhiteElo "2327"]
[BlackElo "2305"]
[Result "0-1"]
[Round "03"]
[TimeControl "180+2"]
[Date "2023.04.18"]
[WhiteClock "0:01:57"]
[BlackClock "0:02:32"]

1. d4 {[%clk 0:03:00]}  g6 {[%clk 0:02:58]} 2. c4 {[%clk 0:03:00]}  b6 {[%clk 0:02:55]} 3. Nc3 {[%clk 0:02:58]}  Bb7 {[%clk 0:02:56]} 4. e4 {[%clk 0:02:58]}  Bg7 {[%clk 0:02:56]} 5. Nf3 {[%clk 0:02:57]}  d6 {[%clk 0:02:55]} 6. Bd3 {[%clk 0:02:57]}  a6 {[%clk 0:02:55]} 7. O-O {[%clk 0:02:57]}  h6 {[%clk 0:02:55]} 8. Re1 {[%clk 0:02:55]}  Nd7 {[%clk 0:02:55]} 9. Bc2 {[%clk 0:02:49]}  e6 {[%clk 0:02:55]} 10. Bf4 {[%clk 0:02:47]}  Ne7 {[%clk 0:02:55]} 11. Bg3 {[%clk 0:02:46]}  g5 {[%clk 0:02:53]} 12. Qd2 {[%clk 0:02:40]}  Ng6 {[%clk 0:02:54]} 13. d5 {[%clk 0:02:38]}  g4 {[%clk 0:02:53]} 14. dxe6 {[%clk 0:02:35]}  fxe6 {[%clk 0:02:52]} 15. Nd4 {[%clk 0:02:35]}  Nde5 {[%clk 0:02:51]} 16. Nxe6 {[%clk 0:02:34]}  Qe7 {[%clk 0:02:51]} 17. Nxg7+ {[%clk 0:02:32]}  Qxg7 {[%clk 0:02:51]} 18. b3 {[%clk 0:02:32]}  h5 {[%clk 0:02:51]} 19. Nd5 {[%clk 0:02:26]}  h4 {[%clk 0:02:51]} 20. Bxe5 {[%clk 0:02:26]}  Nxe5 {[%clk 0:02:52]} 21. Rad1 {[%clk 0:02:20]}  Nf3+ {[%clk 0:02:51]} 22. Kh1 {[%clk 0:02:14]}  Nxd2 {[%clk 0:02:51]} 23. Rxd2 {[%clk 0:02:15]}  O-O-O {[%clk 0:02:49]} 24. b4 {[%clk 0:02:11]}  Rhe8 {[%clk 0:02:46]} 25. a4 {[%clk 0:02:07]}  Kb8 {[%clk 0:02:43]} 26. a5 {[%clk 0:02:07]}  b5 {[%clk 0:02:42]} 27. cxb5 {[%clk 0:02:05]}  axb5 {[%clk 0:02:40]} 28. Rc1 {[%clk 0:02:03]}  Qb2 {[%clk 0:02:36]} 29. Rdd1 {[%clk 0:02:02]}  Bxd5 {[%clk 0:02:33]} 30. exd5 {[%clk 0:02:02]}  Re2 {[%clk 0:02:33]} 31. Bd3 {[%clk 0:01:57]}  Rxf2 {[%clk 0:02:32]} 0-1


[Site "https://www.chess.com"]

[Event "Titled Tuesday Blitz April 18 Early 2023"]
[White "Karthik Sai Ch"]
[Black "Hajiyev, Kanan"]
[WhiteFideId "46649484"]
[BlackFideId "13404148"]
[WhiteElo "2003"]
[BlackElo "2103"]
[Result "0-1"]
[Round "03"]
[TimeControl "180+2"]
[Date "2023.04.18"]
[WhiteClock "0:01:46"]
[BlackClock "0:01:23"]

1. d4 {[%clk 0:03:00]}  Nf6 {[%clk 0:02:58]} 2. Nf3 {[%clk 0:03:00]}  e6 {[%clk 0:02:58]} 3. e3 {[%clk 0:02:58]}  c5 {[%clk 0:02:52]} 4. Bd3 {[%clk 0:02:56]}  b6 {[%clk 0:02:51]} 5. O-O {[%clk 0:02:55]}  Bb7 {[%clk 0:02:50]} 6. Nbd2 {[%clk 0:02:56]}  Be7 {[%clk 0:02:46]} 7. b3 {[%clk 0:02:56]}  cxd4 {[%clk 0:02:40]} 8. exd4 {[%clk 0:02:55]}  O-O {[%clk 0:02:39]} 9. Bb2 {[%clk 0:02:55]}  d6 {[%clk 0:02:33]} 10. Qe2 {[%clk 0:02:53]}  Nbd7 {[%clk 0:02:33]} 11. a4 {[%clk 0:02:51]}  a6 {[%clk 0:02:32]} 12. c4 {[%clk 0:02:44]}  Qc7 {[%clk 0:02:25]} 13. a5 {[%clk 0:02:43]}  b5 {[%clk 0:01:58]} 14. cxb5 {[%clk 0:02:40]}  axb5 {[%clk 0:01:59]} 15. Bxb5 {[%clk 0:02:37]}  Rxa5 {[%clk 0:01:56]} 16. Ba4 {[%clk 0:02:20]}  Ba6 {[%clk 0:01:45]} 17. Rac1 {[%clk 0:01:50]}  Qxc1 {[%clk 0:01:42]} 18. Qxa6 {[%clk 0:01:46]}  Qxd2 {[%clk 0:01:23]} 0-1


[Site "https://www.chess.com"]